[Event "*** SCC Grand Prix: Titled Tuesday Blitz"]
[Site "Chess.com"]
[Date "2020.07.21"]
[Round "10"]
[White "Chessmasterzt"]
[Black "aNaartjieZA"]
[Result "1/2-1/2"]
[WhiteElo "2589"]
[BlackElo "2460"]
[TimeControl "180+1"]
[EndTime "12:00:54 PDT"]
[Termination "Game drawn by repetition"]

1. d4 {[%clk 0:03:00.9]} 1... Nf6 {[%clk 0:02:59.8]} 2. Nf3 {[%clk 0:02:54.4]}
2... g6 {[%clk 0:02:59.7]} 3. c4 {[%clk 0:02:54.9]} 3... Bg7 {[%clk 0:02:59.8]}
4. Nc3 {[%clk 0:02:55.5]} 4... O-O {[%clk 0:03:00.1]} 5. e4 {[%clk 0:02:55.9]}
5... d6 {[%clk 0:03:00.3]} 6. Be2 {[%clk 0:02:56.8]} 6... c5 {[%clk 0:03:00.5]}
7. O-O {[%clk 0:02:56.6]} 7... cxd4 {[%clk 0:03:00.2]} 8. Nxd4 {[%clk
0:02:57.5]} 8... Nc6 {[%clk 0:03:00.5]} 9. Be3 {[%clk 0:02:50.2]} 9... Bd7
{[%clk 0:03:00]} 10. h3 {[%clk 0:02:39.3]} 10... Nxd4 {[%clk 0:02:56.4]} 11.
Bxd4 {[%clk 0:02:40.2]} 11... Qa5 {[%clk 0:02:56.5]} 12. Qc2 {[%clk 0:02:30]}
12... Rfc8 {[%clk 0:02:54.4]} 13. Rab1 {[%clk 0:02:15.5]} 13... Be6 {[%clk
0:02:50.3]} 14. b3 {[%clk 0:02:02.7]} 14... b5 {[%clk 0:02:31.9]} 15. b4 {[%clk
0:01:51.7]} 15... Qd8 {[%clk 0:02:20.7]} 16. cxb5 {[%clk 0:01:36.5]} 16... Bc4
{[%clk 0:02:10]} 17. Bxc4 {[%clk 0:01:28.5]} 17... Rxc4 {[%clk 0:02:09.6]} 18.
Qd3 {[%clk 0:01:29.1]} 18... Rac8 {[%clk 0:02:07.6]} 19. Bxf6 {[%clk 0:01:27.8]}
19... Bxf6 {[%clk 0:02:05.5]} 20. Nd5 {[%clk 0:01:28.3]} 20... Bg7 {[%clk
0:02:04.3]} 21. a4 {[%clk 0:01:10.6]} 21... e6 {[%clk 0:02:03.5]} 22. Nf4 {[%clk
0:01:03.8]} 22... Qb6 {[%clk 0:01:50.3]} 23. Ne2 {[%clk 0:00:51.6]} 23... Bh6
{[%clk 0:01:33]} 24. Rfd1 {[%clk 0:00:48.4]} 24... Rc2 {[%clk 0:01:28.4]} 25. a5
{[%clk 0:00:32.7]} 25... Qb7 {[%clk 0:01:20.6]} 26. Nd4 {[%clk 0:00:27.9]} 26...
R2c7 {[%clk 0:01:10.7]} 27. Nc6 {[%clk 0:00:25.5]} 27... Bf8 {[%clk 0:01:08.1]}
28. a6 {[%clk 0:00:23.7]} 28... Qb6 {[%clk 0:01:06.3]} 29. Rbc1 {[%clk
0:00:22.9]} 29... Bh6 {[%clk 0:00:54.4]} 30. Rc2 {[%clk 0:00:22.6]} 30... Bf8
{[%clk 0:00:45.6]} 31. h4 {[%clk 0:00:22.8]} 31... h5 {[%clk 0:00:45.2]} 32. g3
{[%clk 0:00:22.9]} 32... Kh7 {[%clk 0:00:42.9]} 33. Kg2 {[%clk 0:00:23.2]} 33...
Rd7 {[%clk 0:00:41.2]} 34. Qe2 {[%clk 0:00:18.6]} 34... d5 {[%clk 0:00:38.8]}
35. Rcd2 {[%clk 0:00:17.3]} 35... Rxc6 {[%clk 0:00:36]} 36. bxc6 {[%clk
0:00:16.7]} 36... Qxc6 {[%clk 0:00:36.3]} 37. exd5 {[%clk 0:00:17.1]} 37... exd5
{[%clk 0:00:36.6]} 38. Kh2 {[%clk 0:00:16.2]} 38... Bxb4 {[%clk 0:00:35.8]} 39.
Rc2 {[%clk 0:00:15.4]} 39... Qf6 {[%clk 0:00:33.3]} 40. Rd3 {[%clk 0:00:14]}
40... d4 {[%clk 0:00:30.3]} 41. Rf3 {[%clk 0:00:13.4]} 41... Qb6 {[%clk
0:00:29.1]} 42. Qd3 {[%clk 0:00:12.9]} 42... Re7 {[%clk 0:00:25.3]} 43. Re2
{[%clk 0:00:12]} 43... Rc7 {[%clk 0:00:22.5]} 44. Re4 {[%clk 0:00:09.9]} 44...
Bc3 {[%clk 0:00:22.3]} 45. Ref4 {[%clk 0:00:09.9]} 45... Kg7 {[%clk 0:00:21.5]}
46. Rf6 {[%clk 0:00:07.9]} 46... Qxf6 {[%clk 0:00:18.8]} 47. Rxf6 {[%clk
0:00:08.8]} 47... Kxf6 {[%clk 0:00:19.3]} 48. Kg2 {[%clk 0:00:09.7]} 48... Kg7
{[%clk 0:00:17.9]} 49. Kf3 {[%clk 0:00:09.5]} 49... Re7 {[%clk 0:00:18]} 50. Qb5
{[%clk 0:00:08.9]} 50... Bd2 {[%clk 0:00:13.5]} 51. Qc5 {[%clk 0:00:06.7]} 51...
Rd7 {[%clk 0:00:12.5]} 52. Qb5 {[%clk 0:00:06.1]} 52... Re7 {[%clk 0:00:12.3]}
53. Qc5 {[%clk 0:00:06.4]} 53... Rd7 {[%clk 0:00:12.4]} 54. Qc6 {[%clk
0:00:06.9]} 54... Re7 {[%clk 0:00:11.6]} 55. Qb7 {[%clk 0:00:06.7]} 55... Kf6
{[%clk 0:00:09.6]} 56. Qc6+ {[%clk 0:00:03.7]} 56... Kg7 {[%clk 0:00:09.7]} 57.
Qb7 {[%clk 0:00:03.9]} 57... Kf6 {[%clk 0:00:09.3]} 58. Qc6+ {[%clk 0:00:04.3]}
58... Kg7 {[%clk 0:00:09.2]} 1/2-1/2

[Event "*** SCC Grand Prix: Titled Tuesday Blitz"]
[Site "Chess.com"]
[Date "2020.07.21"]
[Round "10"]
[White "vladislavkovalev"]
[Black "Indianlad"]
[Result "1-0"]
[WhiteElo "2918"]
[BlackElo "2977"]
[TimeControl "180+1"]
[EndTime "12:00:55 PDT"]
[Termination "vladislavkovalev won by checkmate"]

1. e4 {[%clk 0:03:00.9]} 1... e5 {[%clk 0:03:00.3]} 2. Nf3 {[%clk 0:03:01.3]}
2... Nc6 {[%clk 0:03:00.7]} 3. Bb5 {[%clk 0:03:01.8]} 3... a6 {[%clk 0:03:01.1]}
4. Ba4 {[%clk 0:03:01.5]} 4... f5 {[%clk 0:03:01.7]} 5. d3 {[%clk 0:02:59.9]}
5... fxe4 {[%clk 0:03:01.9]} 6. dxe4 {[%clk 0:03:00.8]} 6... Nf6 {[%clk
0:03:02.2]} 7. O-O {[%clk 0:03:00.9]} 7... d6 {[%clk 0:03:02.7]} 8. Nc3 {[%clk
0:02:47.3]} 8... Be7 {[%clk 0:03:02.8]} 9. Bb3 {[%clk 0:02:35]} 9... Na5 {[%clk
0:03:02.6]} 10. Qd3 {[%clk 0:02:25.5]} 10... Nxb3 {[%clk 0:03:01.7]} 11. axb3
{[%clk 0:02:26.4]} 11... O-O {[%clk 0:03:01.9]} 12. Qc4+ {[%clk 0:02:19.9]}
12... Kh8 {[%clk 0:03:01.9]} 13. Ng5 {[%clk 0:02:20.4]} 13... Qe8 {[%clk
0:03:02]} 14. Qxc7 {[%clk 0:02:16.1]} 14... h6 {[%clk 0:03:02.3]} 15. Nf3 {[%clk
0:02:09.9]} 15... Bg4 {[%clk 0:02:59.2]} 16. Be3 {[%clk 0:01:48.2]} 16... Bxf3
{[%clk 0:02:52.5]} 17. gxf3 {[%clk 0:01:49.1]} 17... Qg6+ {[%clk 0:02:29.8]} 18.
Kh1 {[%clk 0:01:47.2]} 18... Qh5 {[%clk 0:02:30.5]} 19. Rg1 {[%clk 0:01:33.6]}
19... Qxf3+ {[%clk 0:02:30.4]} 20. Rg2 {[%clk 0:01:34.2]} 20... Rf7 {[%clk
0:02:30.7]} 21. Qxb7 {[%clk 0:01:31.9]} 21... Raf8 {[%clk 0:02:30.7]} 22. Qxa6
{[%clk 0:01:30.3]} 22... Nxe4 {[%clk 0:02:17.3]} 23. Nxe4 {[%clk 0:01:21.6]}
23... Qxe4 {[%clk 0:02:18.2]} 24. Qc4 {[%clk 0:01:21.5]} 24... Qf3 {[%clk
0:02:17.7]} 25. Qg4 {[%clk 0:01:18.4]} 25... Qc6 {[%clk 0:02:12.5]} 26. c4
{[%clk 0:01:13.4]} 26... d5 {[%clk 0:02:10.5]} 27. cxd5 {[%clk 0:01:10.4]} 27...
Qxd5 {[%clk 0:02:11.4]} 28. Qc4 {[%clk 0:01:08.5]} 28... Qb7 {[%clk 0:02:04.3]}
29. Rd1 {[%clk 0:01:04.3]} 29... Qf3 {[%clk 0:01:31.3]} 30. Qg4 {[%clk
0:01:03.9]} 30... Qb7 {[%clk 0:01:25.5]} 31. Qc4 {[%clk 0:01:03.3]} 31... Bf6
{[%clk 0:00:49.8]} 32. b4 {[%clk 0:00:59.7]} 32... Rc7 {[%clk 0:00:48.6]} 33.
Qg4 {[%clk 0:00:55.4]} 33... Rc2 {[%clk 0:00:40.5]} 34. h3 {[%clk 0:00:48.3]}
34... Rfc8 {[%clk 0:00:28.5]} 35. Rd7 {[%clk 0:00:43.1]} 35... R2c7 {[%clk
0:00:29.1]} 36. Rxc7 {[%clk 0:00:39.3]} 36... Qxc7 {[%clk 0:00:30]} 37. b5
{[%clk 0:00:39.2]} 37... Rd8 {[%clk 0:00:26.2]} 38. b6 {[%clk 0:00:37.6]} 38...
Qb7 {[%clk 0:00:26.9]} 39. Qe6 {[%clk 0:00:31]} 39... e4 {[%clk 0:00:26.2]} 40.
Kh2 {[%clk 0:00:26.2]} 40... Qb8+ {[%clk 0:00:25.6]} 41. Kh1 {[%clk 0:00:24]}
41... Re8 {[%clk 0:00:20.3]} 42. Qf5 {[%clk 0:00:19.6]} 42... Qd8 {[%clk
0:00:16]} 43. Rg6 {[%clk 0:00:16.5]} 43... Qd1+ {[%clk 0:00:15.5]} 44. Kg2
{[%clk 0:00:14.5]} 44... Re5 {[%clk 0:00:12.6]} 45. Rxh6+ {[%clk 0:00:11.7]}
45... Kg8 {[%clk 0:00:10.4]} 46. Qh7+ {[%clk 0:00:06.7]} 46... Kf7 {[%clk
0:00:10.5]} 47. Qg6+ {[%clk 0:00:05.6]} 47... Ke7 {[%clk 0:00:11.1]} 48. Rh7
{[%clk 0:00:03.9]} 48... Qf3+ {[%clk 0:00:11.6]} 49. Kh2 {[%clk 0:00:03.8]}
49... Re6 {[%clk 0:00:11]} 50. Rxg7+ {[%clk 0:00:03.7]} 50... Kd6 {[%clk
0:00:11.6]} 51. Qf7 {[%clk 0:00:02.1]} 51... Be5+ {[%clk 0:00:11.7]} 52. Kg1
{[%clk 0:00:02.3]} 52... Qd1+ {[%clk 0:00:12.2]} 53. Kg2 {[%clk 0:00:02.6]}
53... Bxg7 {[%clk 0:00:13.1]} 54. Qxg7 {[%clk 0:00:01.5]} 54... Qf3+ {[%clk
0:00:13.7]} 55. Kh2 {[%clk 0:00:02.2]} 55... Qf6 {[%clk 0:00:07.5]} 56. Qc7+
{[%clk 0:00:02.4]} 56... Kd5 {[%clk 0:00:07.5]} 57. Qc5# {[%clk 0:00:03.3]} 1-0

[Event "*** SCC Grand Prix: Titled Tuesday Blitz"]
[Site "Chess.com"]
[Date "2020.07.21"]
[Round "10"]
[White "MNyuyu"]
[Black "Kildepiotr"]
[Result "1-0"]
[WhiteElo "2427"]
[BlackElo "2593"]
[TimeControl "180+1"]
[EndTime "12:00:55 PDT"]
[Termination "MNyuyu won by resignation"]

1. d4 {[%clk 0:03:00.9]} 1... c5 {[%clk 0:02:59.6]} 2. e3 {[%clk 0:03:00.5]}
2... Nf6 {[%clk 0:02:59.2]} 3. c3 {[%clk 0:03:00.4]} 3... d5 {[%clk 0:02:59.3]}
4. Nf3 {[%clk 0:02:59.3]} 4... Bg4 {[%clk 0:02:59.2]} 5. Be2 {[%clk 0:02:59.2]}
5... e6 {[%clk 0:02:59.2]} 6. Nbd2 {[%clk 0:02:59]} 6... Nbd7 {[%clk 0:02:58.9]}
7. O-O {[%clk 0:02:58.4]} 7... Bd6 {[%clk 0:02:57.7]} 8. b3 {[%clk 0:02:55.8]}
8... O-O {[%clk 0:02:56.4]} 9. Bb2 {[%clk 0:02:55.3]} 9... cxd4 {[%clk
0:02:50.7]} 10. cxd4 {[%clk 0:02:50.7]} 10... Qa5 {[%clk 0:02:49.2]} 11. Ne5
{[%clk 0:02:47.7]} 11... Bxe2 {[%clk 0:02:46.7]} 12. Qxe2 {[%clk 0:02:47.4]}
12... Rfc8 {[%clk 0:02:45.7]} 13. Nxd7 {[%clk 0:02:35]} 13... Nxd7 {[%clk
0:02:45.3]} 14. Nf3 {[%clk 0:02:34.6]} 14... Rc7 {[%clk 0:02:31.5]} 15. a3
{[%clk 0:02:27.2]} 15... Rac8 {[%clk 0:02:30]} 16. b4 {[%clk 0:02:26.9]} 16...
Qa4 {[%clk 0:02:29]} 17. Rac1 {[%clk 0:02:20.3]} 17... Rc2 {[%clk 0:02:20.5]}
18. Qd3 {[%clk 0:02:19.9]} 18... R8c7 {[%clk 0:02:11.7]} 19. Rb1 {[%clk
0:02:09.6]} 19... Nb6 {[%clk 0:02:02.4]} 20. e4 {[%clk 0:01:59.4]} 20... dxe4
{[%clk 0:01:59.4]} 21. Qxe4 {[%clk 0:01:58.8]} 21... h6 {[%clk 0:01:53.4]} 22.
d5 {[%clk 0:01:49.1]} 22... Nxd5 {[%clk 0:01:50.6]} 23. Nd4 {[%clk 0:01:39.8]}
23... R2c4 {[%clk 0:01:45.2]} 24. Qd3 {[%clk 0:01:32.3]} 24... Qd7 {[%clk
0:01:31.2]} 25. g3 {[%clk 0:01:25.3]} 25... b5 {[%clk 0:01:26]} 26. Nf3 {[%clk
0:01:22.7]} 26... a6 {[%clk 0:01:23.3]} 27. Rfd1 {[%clk 0:01:21.3]} 27... Qe7
{[%clk 0:01:14.5]} 28. Nd2 {[%clk 0:01:20.7]} 28... R4c6 {[%clk 0:01:11]} 29.
Ne4 {[%clk 0:01:19.2]} 29... Rc8 {[%clk 0:01:06.2]} 30. Re1 {[%clk 0:01:15.6]}
30... Nb6 {[%clk 0:01:01.7]} 31. Rbd1 {[%clk 0:01:06.2]} 31... Nc4 {[%clk
0:00:59.9]} 32. Ba1 {[%clk 0:01:00.9]} 32... Bc7 {[%clk 0:00:58.9]} 33. Qd4
{[%clk 0:00:53.5]} 33... Be5 {[%clk 0:00:58]} 34. Qd3 {[%clk 0:00:45.7]} 34...
Bxa1 {[%clk 0:00:57.6]} 35. Rxa1 {[%clk 0:00:45.2]} 35... Rd8 {[%clk 0:00:57.7]}
36. Qf3 {[%clk 0:00:41.8]} 36... Ne5 {[%clk 0:00:48.6]} 37. Qh5 {[%clk
0:00:39.6]} 37... Rd5 {[%clk 0:00:38.8]} 38. Qe2 {[%clk 0:00:34.7]} 38... Qc7
{[%clk 0:00:36.7]} 39. Nc5 {[%clk 0:00:33.1]} 39... Rcd6 {[%clk 0:00:34]} 40.
Rac1 {[%clk 0:00:30.6]} 40... Nc4 {[%clk 0:00:33.2]} 41. Ne4 {[%clk 0:00:26.2]}
41... Rd8 {[%clk 0:00:31.7]} 42. a4 {[%clk 0:00:20.6]} 42... Qe5 {[%clk
0:00:28.3]} 43. axb5 {[%clk 0:00:19.5]} 43... axb5 {[%clk 0:00:28.3]} 44. Nc3
{[%clk 0:00:19.1]} 44... Qxe2 {[%clk 0:00:27.8]} 45. Rxe2 {[%clk 0:00:18.8]}
45... Rf5 {[%clk 0:00:22.5]} 46. g4 {[%clk 0:00:18.2]} 46... Rg5 {[%clk
0:00:21.5]} 47. h3 {[%clk 0:00:18.1]} 47... Nd6 {[%clk 0:00:16.9]} 48. f4 {[%clk
0:00:17]} 48... Rd5 {[%clk 0:00:14.1]} 49. Nxd5 {[%clk 0:00:16.1]} 49... exd5
{[%clk 0:00:15]} 50. Rc5 {[%clk 0:00:15.5]} 50... d4 {[%clk 0:00:14.3]} 51. Rd5
{[%clk 0:00:15.1]} 51... Kf8 {[%clk 0:00:13.8]} 52. Rxd4 {[%clk 0:00:14.4]}
52... Nb7 {[%clk 0:00:13]} 53. Rxd8+ {[%clk 0:00:13.4]} 53... Nxd8 {[%clk
0:00:13.9]} 54. Re5 {[%clk 0:00:13.5]} 54... Ne6 {[%clk 0:00:14.1]} 55. Rxb5
{[%clk 0:00:13.2]} 55... Nxf4 {[%clk 0:00:14.3]} 56. Kh2 {[%clk 0:00:13.8]}
56... Ke7 {[%clk 0:00:13.9]} 57. Rb7+ {[%clk 0:00:13.1]} 57... Ke6 {[%clk
0:00:14.2]} 58. b5 {[%clk 0:00:12.7]} 58... Nd5 {[%clk 0:00:14.5]} 59. b6 {[%clk
0:00:12.3]} 59... g5 {[%clk 0:00:13.1]} 60. Rb8 {[%clk 0:00:11.5]} 60... Kd7
{[%clk 0:00:12.3]} 61. b7 {[%clk 0:00:11.2]} 61... Kc7 {[%clk 0:00:12.6]} 62.
Rd8 {[%clk 0:00:10.7]} 1-0

[Event "*** SCC Grand Prix: Titled Tuesday Blitz"]
[Site "Chess.com"]
[Date "2020.07.21"]
[Round "10"]
[White "petroniy_arbitr"]
[Black "Margarita2907"]
[Result "1-0"]
[WhiteElo "2254"]
[BlackElo "2088"]
[TimeControl "180+1"]
[EndTime "12:00:56 PDT"]
[Termination "petroniy_arbitr won on time"]

1. d4 {[%clk 0:03:00.9]} 1... d5 {[%clk 0:02:59.3]} 2. c4 {[%clk 0:03:01]} 2...
e6 {[%clk 0:02:59.3]} 3. Nc3 {[%clk 0:03:00.7]} 3... Nf6 {[%clk 0:02:59.2]} 4.
cxd5 {[%clk 0:03:00.3]} 4... exd5 {[%clk 0:02:58.7]} 5. Bg5 {[%clk 0:03:00.1]}
5... Be7 {[%clk 0:02:58.1]} 6. e3 {[%clk 0:02:59.8]} 6... O-O {[%clk 0:02:57.7]}
7. Bd3 {[%clk 0:02:59.9]} 7... c6 {[%clk 0:02:57.7]} 8. Qc2 {[%clk 0:02:59.9]}
8... Nbd7 {[%clk 0:02:57.3]} 9. Nf3 {[%clk 0:02:59.6]} 9... h6 {[%clk
0:02:57.3]} 10. Bf4 {[%clk 0:02:57.6]} 10... Nh5 {[%clk 0:02:56.8]} 11. Be5
{[%clk 0:02:55.1]} 11... Nxe5 {[%clk 0:02:56.4]} 12. Nxe5 {[%clk 0:02:55.1]}
12... Nf6 {[%clk 0:02:52.7]} 13. O-O {[%clk 0:02:54.1]} 13... Bd6 {[%clk
0:02:51.4]} 14. f4 {[%clk 0:02:52.5]} 14... Re8 {[%clk 0:02:41]} 15. Rae1 {[%clk
0:02:51.3]} 15... Qc7 {[%clk 0:02:26.4]} 16. Kh1 {[%clk 0:02:35.4]} 16... a6
{[%clk 0:02:24.9]} 17. Ne2 {[%clk 0:02:10]} 17... c5 {[%clk 0:02:20.9]} 18. Ng3
{[%clk 0:02:04]} 18... cxd4 {[%clk 0:01:54.7]} 19. Qxc7 {[%clk 0:02:02.9]} 19...
Bxc7 {[%clk 0:01:53.7]} 20. exd4 {[%clk 0:02:02.4]} 20... Bb6 {[%clk 0:01:45.4]}
21. Ne2 {[%clk 0:01:32.1]} 21... Bd7 {[%clk 0:01:28.1]} 22. Rc1 {[%clk
0:01:27.5]} 22... Rac8 {[%clk 0:01:21.1]} 23. g3 {[%clk 0:01:25.2]} 23... Bb5
{[%clk 0:01:04.1]} 24. Bxb5 {[%clk 0:01:23.3]} 24... axb5 {[%clk 0:01:03.8]} 25.
a3 {[%clk 0:01:10.4]} 25... Ne4 {[%clk 0:01:02.5]} 26. Kg2 {[%clk 0:01:09.6]}
26... f6 {[%clk 0:00:55]} 27. Nf3 {[%clk 0:01:02.9]} 27... Nd6 {[%clk
0:00:50.4]} 28. Nc3 {[%clk 0:00:59.7]} 28... Nc4 {[%clk 0:00:30.9]} 29. Nxd5
{[%clk 0:00:58.4]} 29... Ba7 {[%clk 0:00:26.5]} 30. b3 {[%clk 0:00:52.9]} 30...
Ne3+ {[%clk 0:00:19.8]} 31. Nxe3 {[%clk 0:00:52]} 31... Rxc1 {[%clk 0:00:20.3]}
32. Rxc1 {[%clk 0:00:51.3]} 32... Rxe3 {[%clk 0:00:20.8]} 33. Rc7 {[%clk
0:00:42.3]} 33... Rxb3 {[%clk 0:00:19.6]} 34. Rxb7 {[%clk 0:00:40.2]} 34... Rxa3
{[%clk 0:00:19.8]} 35. Rxb5 {[%clk 0:00:37.8]} 35... Ra4 {[%clk 0:00:17.5]} 36.
d5 {[%clk 0:00:36.3]} 36... Ra2+ {[%clk 0:00:17.5]} 37. Kh3 {[%clk 0:00:34.9]}
37... Kf7 {[%clk 0:00:18]} 38. Rb7+ {[%clk 0:00:33.8]} 38... Kf8 {[%clk
0:00:18.2]} 39. d6 {[%clk 0:00:29]} 39... Be3 {[%clk 0:00:16.4]} 40. Nh4 {[%clk
0:00:26.7]} 40... Rd2 {[%clk 0:00:13.8]} 41. d7 {[%clk 0:00:23.2]} 41... Bg1
{[%clk 0:00:10.8]} 42. Ng6+ {[%clk 0:00:20.4]} 42... Kg8 {[%clk 0:00:09.4]} 43.
Rb8+ {[%clk 0:00:20.1]} 43... Kh7 {[%clk 0:00:09.3]} 44. d8=Q {[%clk 0:00:19.7]}
44... Rxd8 {[%clk 0:00:07.2]} 45. Rxd8 {[%clk 0:00:19.4]} 45... Kxg6 {[%clk
0:00:07.9]} 46. Kg4 {[%clk 0:00:19.1]} 46... h5+ {[%clk 0:00:07]} 47. Kh3 {[%clk
0:00:18.3]} 47... Bc5 {[%clk 0:00:06.5]} 48. Kg2 {[%clk 0:00:17.6]} 48... Kh6
{[%clk 0:00:04.9]} 49. Rd7 {[%clk 0:00:17.6]} 49... g5 {[%clk 0:00:03.1]} 50.
Kf3 {[%clk 0:00:17.4]} 50... gxf4 {[%clk 0:00:02.1]} 51. Kxf4 {[%clk 0:00:16.6]}
51... Bf8 {[%clk 0:00:02.7]} 52. Kf5 {[%clk 0:00:16.1]} 52... Bg7 {[%clk
0:00:02.8]} 53. Rf7 {[%clk 0:00:16]} 53... Bh8 {[%clk 0:00:01.8]} 54. h4 {[%clk
0:00:15.4]} 1-0

[Event "*** SCC Grand Prix: Titled Tuesday Blitz"]
[Site "Chess.com"]
[Date "2020.07.21"]
[Round "10"]
[White "Mikasinski"]
[Black "Fh2411"]
[Result "0-1"]
[WhiteElo "2429"]
[BlackElo "2582"]
[TimeControl "180+1"]
[EndTime "12:01:00 PDT"]
[Termination "Fh2411 won on time"]

1. e4 {[%clk 0:03:00.9]} 1... c5 {[%clk 0:02:59.8]} 2. Nf3 {[%clk 0:03:00.7]}
2... e6 {[%clk 0:03:00.7]} 3. d4 {[%clk 0:03:00.5]} 3... cxd4 {[%clk 0:02:56.5]}
4. Nxd4 {[%clk 0:03:01.1]} 4... a6 {[%clk 0:02:57.4]} 5. Be2 {[%clk 0:03:01.3]}
5... Qc7 {[%clk 0:02:52.9]} 6. O-O {[%clk 0:03:00.8]} 6... Nf6 {[%clk
0:02:53.6]} 7. Nc3 {[%clk 0:03:00.2]} 7... b5 {[%clk 0:02:53.9]} 8. Bf3 {[%clk
0:03:00.1]} 8... Nc6 {[%clk 0:02:52.6]} 9. e5 {[%clk 0:02:47.6]} 9... Ng8 {[%clk
0:02:51.9]} 10. Nxc6 {[%clk 0:02:45.3]} 10... dxc6 {[%clk 0:02:52.8]} 11. Bf4
{[%clk 0:02:38.2]} 11... Ne7 {[%clk 0:02:48.7]} 12. Ne4 {[%clk 0:02:36.2]} 12...
Nd5 {[%clk 0:02:48.8]} 13. Bg3 {[%clk 0:02:32]} 13... Bb7 {[%clk 0:02:35.5]} 14.
Nd6+ {[%clk 0:02:16.6]} 14... Bxd6 {[%clk 0:02:34.7]} 15. exd6 {[%clk
0:02:17.2]} 15... Qd7 {[%clk 0:02:34.4]} 16. Qd4 {[%clk 0:02:14.7]} 16... O-O
{[%clk 0:02:31.2]} 17. Qc5 {[%clk 0:02:03.4]} 17... Rfc8 {[%clk 0:02:12.5]} 18.
b3 {[%clk 0:02:01.2]} 18... b4 {[%clk 0:02:03]} 19. a3 {[%clk 0:01:47.8]} 19...
a5 {[%clk 0:02:03.2]} 20. axb4 {[%clk 0:01:44.9]} 20... axb4 {[%clk 0:02:04.1]}
21. Rfe1 {[%clk 0:01:23.2]} 21... Qd8 {[%clk 0:01:17.9]} 22. h3 {[%clk
0:00:47.8]} 22... Qb6 {[%clk 0:01:12.8]} 23. Qxb6 {[%clk 0:00:35.1]} 23... Nxb6
{[%clk 0:01:12.3]} 24. Be5 {[%clk 0:00:32.1]} 24... Nd7 {[%clk 0:01:08.2]} 25.
Bd4 {[%clk 0:00:30.4]} 25... Ba6 {[%clk 0:00:58.5]} 26. Ra4 {[%clk 0:00:26.3]}
26... Bb5 {[%clk 0:00:41.8]} 27. Rxb4 {[%clk 0:00:25]} 27... Ra2 {[%clk
0:00:42.4]} 28. c4 {[%clk 0:00:22.5]} 28... Ba6 {[%clk 0:00:42.4]} 29. c5 {[%clk
0:00:18.1]} 29... Ra5 {[%clk 0:00:36.2]} 30. Ra4 {[%clk 0:00:15.9]} 30... Rxa4
{[%clk 0:00:36.2]} 31. bxa4 {[%clk 0:00:16.3]} 31... Bc4 {[%clk 0:00:30.8]} 32.
Rb1 {[%clk 0:00:16.2]} 32... Ba6 {[%clk 0:00:30.9]} 33. Kh2 {[%clk 0:00:12.8]}
33... f6 {[%clk 0:00:27.8]} 34. Be3 {[%clk 0:00:12.7]} 34... Kf7 {[%clk
0:00:27.6]} 35. Kg3 {[%clk 0:00:10.6]} 35... g6 {[%clk 0:00:26.2]} 36. Rb2
{[%clk 0:00:09.9]} 36... e5 {[%clk 0:00:24.6]} 37. Be2 {[%clk 0:00:07.9]} 37...
Bxe2 {[%clk 0:00:22.7]} 38. Rxe2 {[%clk 0:00:08.6]} 38... Ra8 {[%clk 0:00:23.2]}
39. Ra2 {[%clk 0:00:07.2]} 39... Ra5 {[%clk 0:00:22.4]} 40. Kf3 {[%clk
0:00:07.1]} 40... Ke6 {[%clk 0:00:22.8]} 41. Ke2 {[%clk 0:00:07]} 41... f5
{[%clk 0:00:21]} 42. Kd3 {[%clk 0:00:07.1]} 42... f4 {[%clk 0:00:20.9]} 43. Bd2
{[%clk 0:00:07.3]} 43... Nxc5+ {[%clk 0:00:20.1]} 44. Kc4 {[%clk 0:00:07.1]}
44... Rxa4+ {[%clk 0:00:20.7]} 45. Rxa4 {[%clk 0:00:06.6]} 45... Nxa4 {[%clk
0:00:21.6]} 46. Kb4 {[%clk 0:00:06.5]} 46... Nb6 {[%clk 0:00:19.6]} 47. Kc5
{[%clk 0:00:06.8]} 47... Nd7+ {[%clk 0:00:18.4]} 48. Kxc6 {[%clk 0:00:07.2]}
48... g5 {[%clk 0:00:18.6]} 49. Kc7 {[%clk 0:00:07]} 49... e4 {[%clk 0:00:16.7]}
50. Bc1 {[%clk 0:00:06.3]} 50... h6 {[%clk 0:00:16.8]} 51. Bd2 {[%clk
0:00:06.5]} 51... Ne5 {[%clk 0:00:16.3]} 52. Bc1 {[%clk 0:00:06.1]} 52... Nd7
{[%clk 0:00:16.8]} 53. Bd2 {[%clk 0:00:06.1]} 53... Nf6 {[%clk 0:00:17.3]} 54.
Bc1 {[%clk 0:00:05.5]} 54... Ne8+ {[%clk 0:00:17.5]} 55. Kc6 {[%clk 0:00:05.1]}
55... Nxd6 {[%clk 0:00:18.4]} 56. Ba3 {[%clk 0:00:04.8]} 56... Nf5 {[%clk
0:00:18.7]} 57. Bf8 {[%clk 0:00:05.3]} 57... Ke5 {[%clk 0:00:17.3]} 58. Kc5
{[%clk 0:00:04.8]} 58... e3 {[%clk 0:00:17.8]} 59. fxe3 {[%clk 0:00:04.9]} 59...
fxe3 {[%clk 0:00:18.7]} 60. Kc4 {[%clk 0:00:04.9]} 60... Ke4 {[%clk 0:00:17.5]}
61. Bb4 {[%clk 0:00:05.2]} 61... Nh4 {[%clk 0:00:17.7]} 62. g3 {[%clk
0:00:04.8]} 62... Nf3 {[%clk 0:00:17.4]} 63. Ba5 {[%clk 0:00:01.7]} 63... h5
{[%clk 0:00:17.4]} 64. Kb3 {[%clk 0:00:01.6]} 64... Kd3 {[%clk 0:00:16.2]} 0-1